bitfinex-derivatives/quotes_ETHF0:USTF0_20250904
["timestamp","ask_amount","ask_price","bid_price","bid_amount"]
[1756945813605,1.12341215,4477.0,4476.9,1.3627509]
[1756945814708,0.93511215,4477.0,4476.9,1.5438509]
[1756945814904,0.1146,4477.5,4476.9,1.5438509]
[1756945814905,0.1146,4477.5,4477.0,0.1811]
[1756945815209,0.3029,4477.5,4477.4,1.3563509]
[1756945815508,1.12302106,4477.5,4477.4,1.19516445]
[1756945816096,0.4271,4477.5,4477.4,1.37626445]
[1756945816302,0.3125,4477.5,4477.4,1.37626445]
[1756945817307,0.6154,4478.0,4477.9,0.3871]
[1756945817509,0.1883,4476.6,4476.5,0.5831]
[1756945817700,0.7042,4476.6,4476.5,1.19516445]
[1756945818100,0.3125,4476.6,4476.5,1.37626445]
[1756945818306,0.117,4477.0,4476.5,1.37626445]
[1756945818514,0.8212,4477.0,4476.9,0.99646445]
[1756945818811,0.8212,4477.0,4476.9,1.19516445]
[1756945819304,0.8212,4477.0,4476.9,0.99646445]
[1756945819499,0.8212,4477.0,4476.9,0.80806445]
[1756945819699,0.3917,4476.7,4476.6,0.80806445]
[1756945819901,0.7042,4476.7,4476.6,0.80806445]
[1756945821207,0.7042,4475.8,4475.7,0.3871]
[1756945821408,0.3125,4475.8,4475.7,1.37626445]
[1756945822606,0.5008,4475.8,4475.7,1.19516445]
[1756945822803,0.3125,4475.7,4475.4,0.80806445]
[1756945823006,0.8212,4475.5,4475.4,0.80806445]
[1756945823206,0.8212,4475.5,4475.4,0.99646445]
[1756945823408,0.8212,4475.5,4475.4,1.19516445]
[1756945823409,0.6178,4475.5,4475.4,1.19516445]
[1756945823607,0.3125,4475.5,4475.4,1.37626445]
[1756945824402,0.117,4476.0,4475.4,1.19516445]
[1756945824709,0.8212,4476.0,4475.9,0.99646445]
[1756945826211,0.8212,4476.0,4475.9,0.1884]
[1756945826410,0.8212,4476.0,4475.9,0.99646445]
[1756945827809,0.8212,4476.0,4475.9,0.80806445]
[1756945828510,0.8212,4476.0,4475.9,1.19516445]
[1756945828710,0.6178,4476.0,4475.9,1.37626445]
[1756945828912,0.6178,4476.0,4475.9,0.3871]
[1756945829110,0.6178,4476.0,4475.9,1.19516445]
[1756945829407,0.8212,4476.0,4475.3,0.23]
[1756945829612,0.3204,4475.5,4475.4,0.1884]
[1756945829810,0.5087,4475.5,4475.4,0.1884]
[1756945830205,0.8212,4475.5,4475.4,0.1884]
[1756945830608,0.3053,4475.0,4474.9,0.3871]
[1756945830807,0.6178,4475.0,4474.9,1.19516445]
[1756945831014,0.4295,4475.0,4474.9,1.37626445]
[1756945832714,0.6178,4475.0,4474.9,1.37626445]
[1756945832908,0.6178,4475.0,4474.9,1.19516445]
[1756945833108,0.8212,4475.0,4474.9,1.19516445]
[1756945834413,0.3125,4475.0,4474.9,1.37626445]
[1756945834609,0.3053,4475.5,4475.4,0.3871]
[1756945834816,0.8212,4475.5,4475.4,1.19516445]
[1756945837612,0.8212,4475.5,4475.4,0.80806445]
[1756945838115,0.7042,4475.4,4475.3,0.80806445]
[1756945839914,0.117,4475.0,4474.9,0.1884]
[1756945840114,0.8212,4475.0,4474.9,0.99646445]
[1756945841816,0.8212,4475.0,4474.9,0.1884]
[1756945842113,0.8212,4475.0,4473.9,1.58092783]
[1756945842114,0.5087,4474.5,4474.4,0.2039]
[1756945842309,0.5087,4474.5,4474.4,1.01196445]
[1756945842516,0.3051,4474.0,4473.9,0.4028]
[1756945842715,0.7979,4474.0,4473.9,1.43986445]
[1756945842912,0.4064,4474.0,4473.9,1.21086445]
[1756945843115,0.2892,4474.0,4473.9,1.39206445]
[1756945844619,0.4064,4474.0,4473.9,1.39206445]
[1756945844816,0.5943,4474.0,4473.9,1.21086445]
[1756945845112,0.7979,4474.0,4473.9,1.21086445]
[1756945846915,0.5943,4474.0,4473.9,1.21086445]
[1756945847120,0.2892,4474.4,4474.0,0.1812]
[1756945847314,0.4771,4474.9,4474.8,0.4028]
[1756945847714,0.4771,4474.9,4474.8,1.21086445]
[1756945847914,0.6807,4474.9,4474.8,1.21086445]
[1756945848717,0.6807,4474.9,4474.8,0.80806445]
[1756945848915,0.6807,4474.9,4474.8,1.01196445]
[1756945849315,0.3915,4474.9,4473.6,0.1812]
[1756945849518,0.7979,4474.5,4474.4,0.80806445]
[1756945849721,0.7979,4474.5,4474.4,1.01196445]
[1756945850020,0.7979,4474.5,4474.4,1.21086445]
[1756945851222,0.2892,4474.5,4474.4,1.39206445]
[1756945851612,0.4064,4474.5,4474.4,1.39206445]
[1756945851916,0.5943,4474.5,4474.4,1.21086445]
[1756945853719,0.7979,4474.5,4474.4,0.80806445]
[1756945853915,0.1172,4474.0,4473.9,0.6318]
[1756945854121,0.5943,4474.0,4473.9,1.43986445]
[1756945854317,0.7979,4474.0,4473.9,1.43986445]
[1756945854919,0.7979,4474.0,4473.9,1.21086445]
[1756945856028,0.7979,4474.0,4473.9,0.80806445]
[1756945857017,0.7979,4474.0,4473.9,1.21086445]
[1756945857221,0.5943,4474.0,4473.9,1.39206445]
[1756945857824,0.2892,4474.0,4473.9,1.39206445]
[1756945859128,0.5943,4474.0,4473.9,1.39206445]
[1756945859428,0.5943,4474.0,4473.9,1.21086445]
[1756945859630,0.7979,4474.0,4473.9,1.21086445]
[1756945862323,0.7979,4474.0,4473.9,1.01196445]
[1756945862529,0.7979,4474.0,4473.9,0.80806445]
[1756945862728,0.7979,4474.0,4473.9,1.01196445]
[1756945864141,0.2892,4474.0,4473.9,1.39206445]
[1756945864346,0.7977,4475.0,4474.9,0.2039]
[1756945864645,0.7977,4475.0,4474.9,1.01196445]
[1756945865538,0.7977,4475.0,4474.4,0.4102]
[1756945865539,0.5087,4474.5,4474.4,0.4329]
[1756945865743,0.7979,4474.5,4474.4,1.24096445]
[1756945865933,0.7979,4474.5,4474.4,1.43986445]
[1756945866845,0.7979,4474.5,4474.4,1.21086445]
[1756945867144,0.7979,4474.5,4474.4,1.01196445]
[1756945867545,0.7979,4474.5,4474.4,0.2039]
[1756945867747,0.7979,4474.5,4474.4,1.01196445]
[1756945868153,0.7979,4474.5,4474.4,1.21086445]
[1756945868348,0.117,4475.0,4474.4,1.39206445]
[1756945868544,0.7977,4475.0,4474.9,1.01196445]
[1756945869250,0.7977,4475.0,4474.9,0.80806445]
[1756945871152,1.30635704,4475.0,4474.9,0.80806445]
[1756945872448,1.30635704,4475.0,4474.4,0.1812]
[1756945872652,0.8196,4474.5,4474.4,0.80806445]
[1756945872951,0.1228,4474.5,4474.1,0.80806445]
[1756945873149,0.3937,4474.2,4474.1,0.3955]
[1756945873353,0.6968,4474.2,4474.1,0.1901]
[1756945873950,0.5165,4474.0,4473.9,0.80806445]
[1756945874150,0.8196,4474.0,4473.9,0.80806445]
[1756945874847,0.622,4474.0,4473.9,1.20356445]
[1756945875149,0.622,4474.0,4473.9,1.38436445]
[1756945875351,0.622,4474.0,4473.9,1.20356445]
[1756945875549,0.8196,4474.0,4473.9,1.36663699]
[1756945875749,0.8196,4474.0,4473.9,1.16123699]
[1756945878650,0.4259,4474.0,4473.9,1.36663699]
[1756945878856,0.622,4474.0,4473.9,1.36663699]
[1756945879555,0.3031,4474.4,4473.9,1.54743699]
[1756945879756,0.4992,4474.2,4474.1,0.3955]
[1756945880052,0.4992,4474.2,4474.1,0.5763]
[1756945880359,0.4992,4474.2,4474.1,0.3955]
[1756945881456,0.3031,4474.2,4474.1,0.5763]
[1756945882054,0.6968,4474.2,4474.1,0.3955]
[1756945883257,0.6968,4473.6,4473.5,0.3955]
[1756945883456,0.6968,4473.6,4473.5,0.6245]
[1756945883655,0.6968,4473.6,4473.5,0.3955]
[1756945883857,0.6968,4473.6,4473.5,0.6245]
[1756945884761,0.6968,4473.6,4473.5,0.3955]
[1756945884963,0.6968,4473.6,4473.5,0.6245]
[1756945887063,0.4992,4473.6,4473.5,0.8053]
[1756945887957,0.4992,4473.6,4473.5,0.3955]
[1756945888156,0.4992,4473.6,4473.5,0.8053]
[1756945888563,0.3031,4473.9,4473.6,0.1808]
[1756945888763,0.4992,4473.9,4473.8,1.36663699]
[1756945889169,0.6968,4473.9,4473.8,1.36663699]
[1756945890966,0.3189,4473.0,4472.9,0.3955]
[1756945891166,0.622,4473.0,4472.9,1.36663699]
[1756945891459,0.622,4473.0,4472.9,1.77004556]
[1756945891664,0.622,4473.0,4472.9,1.95084556]
[1756945892260,0.622,4473.0,4472.9,1.72184556]
[1756945892564,0.622,4473.0,4472.9,1.95084556]
[1756945893759,0.3031,4473.9,4473.7,0.1808]
[1756945893968,0.8196,4474.5,4474.4,0.1901]
[1756945894169,1.34290775,4474.5,4474.4,0.1901]
[1756945895668,1.34290775,4474.5,4474.4,0.3955]
[1756945896767,1.34295794,4474.5,4474.4,0.3955]
[1756945897363,0.8196,4474.5,4474.4,0.3955]
[1756945899866,0.4259,4474.5,4474.4,0.5763]
[1756945900264,0.622,4474.5,4474.4,0.5763]
[1756945900871,0.622,4474.5,4474.4,0.3955]
[1756945901571,1.14553795,4474.5,4474.4,0.3955]
[1756945903263,0.1228,4475.0,4474.4,0.3955]
[1756945903264,0.4297,4475.0,4474.4,0.3955]
[1756945903464,0.3069,4475.6,4475.4,0.3996]
[1756945903772,0.3069,4475.6,4475.5,2.0630232]
[1756945904270,0.5035,4475.6,4475.5,1.8820232]
[1756945905365,0.5035,4475.6,4475.5,1.59973699]
[1756945906863,0.5035,4475.6,4475.5,1.37073699]
[1756945907069,0.5035,4475.6,4475.5,1.59973699]
[1756945910565,0.5035,4475.6,4475.5,0.2022]
[1756945910566,0.7011,4475.6,4475.5,0.2022]
[1756945910770,0.1132,4476.5,4475.4,0.229]
[1756945910771,0.8143,4475.5,4475.4,0.229]
[1756945910974,0.8143,4475.5,4475.2,0.97113699]
[1756945910975,0.3069,4475.4,4475.2,1.20013699]
[1756945911170,0.7011,4475.3,4475.2,1.40233699]
[1756945917677,0.5035,4475.3,4475.2,1.78073699]
[1756945917884,0.3069,4475.3,4475.2,1.78073699]
[1756945918381,0.3069,4475.3,4475.2,1.55173699]
[1756945918581,0.3069,4475.3,4475.2,1.78073699]
[1756945918775,0.3069,4475.3,4475.2,1.55173699]
[1756945918975,0.3069,4475.3,4475.2,1.78073699]
[1756945920489,0.1132,4475.5,4475.4,0.3996]
[1756945920677,0.4201,4475.5,4475.4,0.5806]
[1756945920877,0.6167,4475.5,4475.4,0.5806]
[1756945921376,0.7011,4474.7,4474.6,0.2022]
[1756945921577,0.5074,4474.5,4474.3,0.97113699]
[1756945921778,0.7011,4474.4,4474.3,1.20013699]
[1756945921970,0.7011,4474.4,4474.3,0.229]
[1756945922178,0.7011,4474.4,4474.3,1.20013699]
[1756945922484,0.7011,4474.4,4474.3,1.17333699]
[1756945923975,0.7011,4474.4,4474.3,1.37073699]
[1756945924175,0.3069,4474.4,4474.3,1.55173699]
[1756945924374,0.7011,4474.4,4474.3,1.37073699]
[1756945927995,0.3069,4474.9,4474.3,0.5806]
[1756945928189,0.7011,4474.9,4474.8,1.17333699]
[1756945929890,0.7011,4474.9,4474.8,1.37073699]
[1756945930591,0.7011,4474.9,4474.8,0.97113699]
[1756945932185,0.3942,4474.9,4473.5,0.1811]
[1756945932489,0.3814,4474.3,4474.2,0.97113699]
[1756945932688,0.6895,4474.3,4474.2,1.38393699]
[1756945933787,0.3081,4474.3,4474.2,1.56503699]
[1756945934086,0.6895,4474.3,4474.2,1.38393699]
[1756945934284,0.6895,4474.3,4474.0,0.229]
[1756945934484,0.6895,4474.3,4474.2,0.97113699]
[1756945934884,0.6895,4474.3,4474.2,1.17853699]
[1756945935090,0.6895,4474.3,4474.2,1.38393699]
[1756945937492,0.6895,4474.3,4474.2,1.22198093]
[1756945938184,0.6895,4474.3,4474.2,1.01658093]
[1756945938380,0.6895,4474.3,4473.7,0.1811]
[1756945938381,0.1137,4474.0,4473.9,0.4364]
[1756945938693,0.4951,4474.0,4473.9,0.4364]
[1756945938992,0.8032,4474.0,4473.9,0.6418]
[1756945939190,0.8032,4474.0,4473.9,0.4128]
[1756945939487,0.8032,4474.0,4473.9,1.45098093]
[1756945941990,0.6895,4473.1,4473.0,0.4128]
[1756945942190,0.6895,4473.1,4473.0,1.01658093]
[1756945942397,0.6895,4473.1,4473.0,1.22198093]
[1756945942589,0.3081,4473.1,4473.0,2.21226186]
[1756945942790,0.3081,4473.1,4473.0,1.40308093]
[1756945944192,0.4987,4473.1,4473.0,1.22198093]
[1756945946192,0.6895,4473.1,4473.0,1.22198093]
[1756945948300,0.4987,4473.1,4473.0,1.40308093]
[1756945950199,0.3081,4473.1,4473.0,1.40308093]
[1756945951493,0.4987,4473.1,4473.0,1.40308093]
[1756945951700,0.4987,4473.1,4473.0,1.22198093]
[1756945952096,0.6895,4473.1,4473.0,1.22198093]
[1756945952797,0.6895,4473.1,4473.0,1.01658093]
[1756945955103,0.6895,4473.1,4472.8,0.16991404]
[1756945955295,0.6895,4473.1,4473.0,0.80918093]
[1756945957893,0.1137,4474.0,4473.4,0.4128]
[1756945958106,0.1906,4473.6,4473.5,0.1811]
[1756945958311,0.4987,4473.6,4473.5,0.5939]
[1756945958507,0.4987,4473.6,4473.5,0.4128]
[1756945959219,0.4987,4473.6,4473.5,1.22198093]
[1756945959824,0.6895,4473.6,4473.5,1.22198093]
[1756945960511,0.6895,4473.6,4473.5,0.80918093]
[1756945960708,0.3814,4473.6,4473.5,0.80918093]
[1756945960912,0.6895,4473.6,4473.5,0.80918093]
[1756945962717,0.6895,4473.6,4473.5,1.00238093]
[1756945965225,0.6895,4473.6,4473.5,0.80918093]
[1756945965419,0.1154,4473.0,4472.9,0.562]
[1756945965724,0.6307,4473.0,4472.9,1.37118093]
[1756945967424,0.6307,4473.0,4472.9,1.19038093]
[1756945969720,0.8319,4473.0,4472.9,1.19038093]
[1756945971525,0.3108,4473.4,4473.0,0.1808]
[1756945971825,0.3108,4473.4,4473.3,1.37118093]
[1756945972021,0.1137,4474.0,4473.4,0.1808]
[1756945972022,0.3108,4473.9,4473.4,0.1808]
[1756945972223,0.3182,4474.5,4474.4,0.3812]
[1756945972416,0.84801291,4474.5,4474.4,0.3812]
[1756945972818,1.15881291,4474.5,4474.4,1.19038093]
[1756945973520,1.15881291,4474.5,4474.4,1.37118093]
[1756945973719,0.4245,4474.5,4474.4,1.37118093]
[1756945974115,0.4245,4474.5,4474.4,1.55128475]
[1756945974319,0.629,4474.5,4474.4,1.55128475]
[1756945974519,0.629,4474.5,4474.4,1.37048475]
[1756945975424,0.629,4474.5,4474.4,1.37118093]
[1756945975722,0.8302,4474.5,4474.4,1.19038093]
[1756945976525,0.8302,4474.5,4474.4,1.00238093]
[1756945979927,0.8302,4474.5,4474.4,1.19038093]
[1756945983826,0.3108,4474.5,4474.4,2.18036186]
[1756945984130,0.5211,4475.5,4475.4,0.1932]
[1756945984330,0.5211,4475.5,4475.4,0.80918093]
[1756945984528,1.36028217,4475.5,4475.4,1.19038093]
[1756945984823,0.1994,4476.5,4475.4,1.19038093]
[1756945985028,0.5153,4475.9,4475.8,0.3812]
[1756945985233,0.5153,4475.9,4475.8,1.19038093]
[1756945985529,0.3108,4476.4,4475.8,1.99956186]
[1756945985729,0.5153,4476.4,4476.3,1.19038093]
[1756945987234,0.3108,4476.4,4476.3,1.37118093]
[1756945987730,0.1154,4476.5,4476.3,1.37118093]
[1756945987919,0.4262,4476.5,4476.4,0.562]
[1756945988826,0.1154,4477.0,4476.5,0.1808]
[1756945989032,0.3199,4477.0,4476.9,1.19038093]
[1756945989230,0.1154,4477.5,4476.9,1.37118093]
[1756945989426,0.4262,4477.5,4477.4,1.37118093]
[1756945990431,0.8319,4477.5,4477.4,0.562]
[1756945990634,0.8319,4477.5,4477.4,0.80918093]
[1756945990828,0.8319,4477.5,4477.4,1.00238093]
[1756945992625,0.8319,4477.5,4477.4,1.19038093]
[1756945992829,0.1154,4478.0,4477.4,2.18016186]
[1756945993126,0.2833,4478.0,4477.9,1.38958093]
[1756945993325,0.5976,4478.0,4477.9,1.20898093]
[1756945993527,0.7922,4478.0,4477.9,1.20898093]
[1756945993733,0.5976,4478.0,4477.9,1.05958093]
[1756945994034,0.5976,4478.0,4477.9,0.87898093]
[1756945994432,0.7922,4478.0,4477.9,0.87898093]
[1756945998537,0.4053,4478.0,4477.9,1.05958093]
[1756945998729,0.2833,4478.0,4477.9,1.05958093]
[1756945999541,0.2833,4478.0,4477.9,1.54972002]
[1756945999935,0.2833,4478.9,4478.3,0.3998]
[1756946000134,0.6702,4478.9,4478.8,1.16722002]
[1756946000340,0.6702,4478.9,4478.8,0.96932002]
[1756946000541,0.6702,4478.9,4478.8,1.16722002]
[1756946001541,0.6702,4478.9,4478.8,1.36912002]
[1756946002435,0.2833,4479.4,4478.8,1.54972002]
[1756946002636,0.3869,4479.4,4479.2,0.96932002]
[1756946002835,0.122,4479.5,4479.2,0.96932002]
[1756946002836,0.2833,4479.3,4479.2,0.96932002]
[1756946003036,0.6702,4479.3,4479.2,1.16722002]
[1756946008147,1.1942918,4479.3,4479.2,1.16722002]
[1756946008646,1.1942918,4479.3,4479.2,1.36912002]
[1756946008842,1.1942918,4479.3,4479.2,1.54972002]
[1756946008843,0.2833,4479.3,4479.2,1.54972002]
[1756946013349,0.1923,4479.4,4479.3,0.7267]
[1756946013544,0.717636,4479.4,4479.3,0.7267]
[1756946015247,1.000936,4479.4,4479.3,0.7267]
[1756946015552,1.195536,4479.4,4479.3,0.0167]
[1756946015740,1.195536,4479.4,4479.3,0.2146]
[1756946015945,1.195536,4479.4,4479.3,0.7267]
[1756946016340,1.195536,4479.4,4479.3,0.2146]
[1756946016552,1.195536,4479.4,4479.3,0.0167]
[1756946020348,1.195536,4479.4,4479.3,0.2146]
[1756946021761,1.195536,4479.4,4479.3,0.7267]
[1756946022654,1.195536,4479.4,4479.3,0.4165]
[1756946024054,1.195536,4479.4,4479.3,0.7192]
[1756946025455,1.000936,4479.4,4479.3,0.7192]
[1756946029263,1.000936,4479.4,4479.3,0.99839277]
[1756946030357,1.000936,4479.4,4479.3,0.7192]
[1756946033558,0.525336,4479.4,4479.3,0.94245]
[1756946033758,0.78471433,4480.2,4480.1,0.3873]
[1756946033958,0.2083,4480.5,4480.4,1.65932002]
[1756946034158,0.4066,4480.5,4480.4,1.65932002]
[1756946035259,0.4066,4480.7,4480.6,0.69]
[1756946035462,0.4066,4480.7,4480.6,0.5014]
[1756946035855,0.4066,4480.7,4480.6,0.69]
[1756946035856,0.6901,4480.7,4480.6,0.69]
[1756946036066,0.4066,4480.7,4480.6,0.69]
[1756946036270,0.1184,4481.5,4481.0,0.1142]
[1756946036271,0.2835,4481.5,4481.0,0.1142]
[1756946036460,0.2083,4481.5,4481.4,1.65932002]
[1756946040063,0.4918,4481.5,4481.4,1.65932002]
[1756946040259,0.6901,4481.5,4481.4,1.65932002]
[1756946041867,0.6901,4481.5,4481.4,0.69]
[1756946042070,0.6901,4481.5,4481.4,1.65932002]
[1756946043564,0.2835,4482.4,4481.6,0.3027]
[1756946043758,0.4066,4482.0,4481.9,1.35662002]
[1756946043970,0.6901,4482.0,4481.9,1.65932002]
[1756946044172,0.8085,4482.0,4481.9,0.96932002]
[1756946044476,0.2083,4482.1,4482.0,0.8042]
[1756946045272,0.4918,4482.4,4482.3,0.3873]
[1756946045472,0.4918,4482.4,4482.3,0.69]
[1756946046073,0.6901,4482.4,4482.1,0.3027]
[1756946046473,0.2835,4482.3,4482.0,0.1142]
[1756946046661,0.4066,4482.2,4482.1,0.4913]
[1756946046866,0.6901,4482.2,4482.1,0.5014]
[1756946049067,0.6901,4482.2,4482.1,0.69]
[1756946051574,0.2083,4482.2,4482.1,0.69]
[1756946052372,0.2929,4483.4,4482.2,0.306]
[1756946052569,0.1997,4483.4,4483.3,1.36952002]
[1756946052767,0.403,4483.4,4483.3,1.67552002]
[1756946052970,0.6959,4483.4,4483.3,1.67552002]
[1756946053174,0.6959,4483.4,4483.3,1.46762002]
[1756946053771,0.2929,4483.3,4482.5,0.1221]
[1756946053972,0.1215,4483.5,4482.9,0.96932002]
[1756946054276,0.2929,4483.3,4482.9,1.36952002]
[1756946054479,0.4926,4483.4,4483.3,0.1923]
[1756946054672,0.6959,4483.4,4483.3,0.7062]
[1756946055472,0.6959,4483.4,4483.0,0.306]
[1756946056081,0.403,4483.4,4482.9,0.96932002]
[1756946056377,0.403,4483.1,4483.0,0.306]
[1756946056581,0.6959,4483.1,4483.0,0.7062]
[1756946057682,0.6959,4483.1,4483.0,0.8283]
[1756946058274,0.4144,4483.0,4482.9,0.96932002]
[1756946058474,0.8174,4483.0,4482.9,1.16162002]
[1756946058678,0.6959,4483.0,4482.9,1.67552002]
[1756946059476,0.5245,4483.0,4482.6,0.306]
[1756946059780,0.6959,4482.7,4482.6,0.7062]
[1756946060283,0.2929,4483.4,4482.7,0.306]
[1756946060485,0.403,4483.2,4483.1,0.4983]
[1756946060779,0.6959,4483.2,4483.1,0.7062]
[1756946060981,0.1184,4484.0,4483.1,0.7062]
[1756946060982,0.1184,4484.0,4483.1,1.51249011]
[1756946061171,0.6959,4483.5,4483.4,0.7062]
[1756946061371,0.8174,4483.5,4483.1,0.306]
[1756946061784,0.50347557,4483.4,4482.6,0.306]
[1756946062081,0.6959,4483.4,4483.1,0.306]
[1756946062277,1.19938921,4483.3,4483.2,1.30459011]
[1756946062472,0.70318921,4483.3,4483.2,1.51249011]
[1756946062672,0.50348921,4483.3,4483.2,1.51249011]
[1756946062876,0.2929,4483.6,4483.2,1.51249011]
[1756946063083,0.4926,4483.6,4483.5,1.63459011]
[1756946063386,0.99637976,4483.6,4483.5,1.63459011]
[1756946063584,1.19967976,4483.6,4483.5,1.63459011]
[1756946064579,0.90677976,4483.6,4483.5,1.63459011]
[1756946064991,1.19967976,4483.6,4483.5,1.63459011]
[1756946065183,1.19536062,4484.3,4483.5,6.66392022]
[1756946065486,0.1997,4484.3,4484.2,1.51249011]
[1756946065874,0.4926,4484.3,4484.2,1.51249011]
[1756946066278,0.1997,4484.3,4484.2,1.51249011]
[1756946066981,0.6959,4484.3,4484.2,1.51249011]
[1756946067576,0.403,4484.3,4484.2,1.51249011]
[1756946068188,0.6959,4484.3,4484.2,1.51249011]
[1756946068781,0.6959,4484.3,4484.2,0.99859011]
[1756946068988,0.6959,4484.3,4484.2,0.80629011]
[1756946069185,0.2929,4484.8,4484.2,1.20649011]
[1756946069384,0.6959,4484.8,4484.7,1.30459011]
[1756946070079,0.6959,4484.8,4484.7,0.4983]
[1756946070279,0.6959,4484.8,4484.7,1.30459011]
[1756946071183,0.6959,4484.8,4484.7,1.51249011]
[1756946072988,0.6959,4484.8,4484.7,0.7062]
[1756946073187,0.6959,4484.8,4484.4,0.80629011]
[1756946073395,0.6959,4484.5,4484.4,1.51249011]
[1756946073588,0.6959,4484.6,4484.5,0.8283]
[1756946073782,0.4926,4484.9,4484.8,0.1923]
[1756946073982,0.6959,4484.9,4484.4,0.306]
[1756946074192,0.6959,4484.4,4484.3,1.30459011]
[1756946074692,0.6959,4484.4,4484.3,1.51249011]
[1756946077287,1.19777616,4484.4,4484.3,1.51249011]
[1756946078698,1.19788164,4484.4,4484.3,1.51249011]
[1756946078899,0.70168164,4484.4,4484.3,1.51249011]
[1756946079099,0.50198164,4484.4,4484.3,1.51249011]
[1756946082501,0.71038164,4484.4,4484.3,1.51249011]
[1756946082701,0.99408164,4484.4,4484.3,1.51249011]
[1756946083708,1.19818164,4484.4,4484.3,0.4983]
[1756946083908,1.19818164,4484.4,4484.3,0.6972]
[1756946084814,1.19818164,4484.4,4484.3,0.4983]
[1756946085016,0.2837,4484.3,4484.2,0.1916]
[1756946085202,1.19818164,4484.3,4484.2,0.4791]
[1756946085709,1.19818164,4484.3,4483.5,0.1221]
[1756946085908,0.6962,4483.7,4483.6,0.4791]
[1756946086109,1.19818164,4483.7,4483.6,1.48429011]
[1756946086311,1.19536062,4484.5,4483.6,4.61353]
[1756946086510,0.6962,4484.7,4484.3,0.80629011]
[1756946086710,0.6962,4484.7,4484.6,0.99789011]
[1756946088218,0.6962,4484.7,4484.6,1.19679011]
[1756946089312,0.4921,4484.7,4484.6,1.44149011]
[1756946090320,0.6962,4484.7,4484.6,1.19679011]
[1756946090915,0.6962,4484.7,4484.6,0.99789011]
[1756946091811,0.6962,4484.7,4484.6,1.19679011]
[1756946094014,0.6962,4484.7,4483.5,0.92839011]
[1756946094206,0.6962,4484.7,4484.6,1.19679011]
[1756946094412,0.4921,4484.7,4484.6,1.44149011]
[1756946095916,0.4921,4484.7,4484.6,1.19679011]
[1756946097022,0.6962,4484.7,4484.6,1.19679011]
[1756946097818,0.6962,4484.7,4484.6,0.99789011]
[1756946098319,1.19329102,4484.7,4484.6,0.99789011]
[1756946098616,1.19329102,4484.7,4484.3,0.80629011]
[1756946098917,0.49709102,4484.6,4484.4,0.2447]
[1756946099221,0.78079102,4484.5,4484.4,0.3905]
[1756946099421,0.78079102,4484.5,4484.4,0.6352]
[1756946100015,0.98919102,4484.5,4484.4,1.44149011]
[1756946100425,0.98919102,4484.5,4483.8,0.2447]
[1756946100426,1.03289102,4484.5,4483.8,0.2447]
[1756946100615,0.78079102,4484.4,4484.3,0.3905]
[1756946100818,0.49709102,4484.4,4484.3,0.6352]
[1756946101019,0.49709102,4484.4,4484.3,0.3905]
[1756946101220,0.49709102,4484.4,4484.3,0.6352]
[1756946101416,0.2837,4484.5,4484.4,0.6352]
[1756946101724,0.49714236,4484.5,4484.4,1.44149011]
[1756946101924,0.00590772,4485.4,4485.3,0.3905]
[1756946102126,0.00590772,4485.4,4485.3,1.44149011]
[1756946103119,0.28960772,4485.4,4485.3,0.6352]
[1756946103321,0.28960772,4485.4,4485.3,1.44149011]
[1756946103523,0.49800772,4485.4,4485.3,1.19679011]
[1756946103733,0.70210772,4485.4,4484.4,0.2447]
[1756946103920,0.1233,4485.0,4484.9,0.80629011]
[1756946104227,0.8195,4485.0,4484.9,0.80629011]
[1756946104821,0.5358,4485.0,4484.6,0.80629011]
[1756946105016,0.6962,4484.7,4483.7,0.2447]
[1756946105215,0.5358,4484.0,4483.9,0.1916]
[1756946105416,0.5358,4484.0,4483.8,0.00334769]
[1756946105826,0.6962,4483.9,4483.8,0.00334769]
[1756946106324,0.2837,4485.1,4485.0,0.3905]
[1756946106526,0.4921,4485.1,4485.0,1.19679011]
[1756946106919,0.4921,4485.1,4485.0,1.44149011]
[1756946107320,0.2837,4485.1,4485.0,1.44149011]
[1756946107527,0.6962,4485.1,4485.0,0.3905]
[1756946107721,0.6962,4485.1,4485.0,0.99789011]
[1756946108628,0.6962,4485.1,4485.0,0.80629011]
[1756946109419,0.1233,4485.5,4484.0,0.0611]
[1756946109420,0.407,4485.0,4484.7,0.80629011]
[1756946109728,0.8195,4484.5,4484.4,0.80629011]
[1756946110531,0.8195,4484.5,4483.8,0.00334769]
[1756946110731,0.8195,4484.5,4484.4,0.80629011]
[1756946111623,0.6962,4483.9,4483.8,0.00334769]
[1756946111933,0.6962,4483.9,4483.8,0.39914769]
[1756946112224,0.6962,4483.9,4483.8,0.00334769]
[1756946112431,0.6962,4483.9,4483.8,0.19644769]
[1756946112626,0.4191,4484.5,4483.9,0.2456]
[1756946112826,0.2958,4484.5,4484.4,1.20359011]
[1756946113025,0.2958,4484.5,4484.4,0.3973]
[1756946113226,0.8153,4484.5,4484.4,0.99939011]
[1756946113823,1.30962839,4484.5,4484.4,0.99939011]
[1756946114720,1.30962839,4484.5,4484.4,1.20359011]
[1756946114920,1.10402839,4484.5,4484.4,1.44919011]
[1756946115546,0.79012839,4484.5,4484.4,1.44919011]
[1756946115831,0.49432839,4484.5,4484.4,1.44919011]
[1756946118226,1.10402839,4484.5,4484.4,1.44919011]
[1756946119134,1.30962839,4484.5,4484.4,1.20359011]
[1756946121438,1.30962839,4484.5,4484.4,1.36416009]
[1756946121640,1.30962839,4484.5,4484.4,1.15996009]
[1756946121840,0.3979,4484.1,4484.0,1.15996009]
[1756946122135,0.6937,4484.1,4484.0,1.15996009]
[1756946122338,0.6937,4484.1,4484.0,1.36416009]
[1756946122536,0.2958,4484.4,4484.0,1.36416009]
[1756946122737,0.8153,4484.5,4484.4,0.3973]
[1756946122934,0.2958,4484.5,4484.4,0.6429]
[1756946124044,0.8153,4484.5,4484.4,0.3973]
[1756946124627,0.8153,4484.5,4484.4,0.1931]
[1756946125132,0.8153,4484.5,4484.3,1.15996009]
[1756946125133,0.6937,4484.4,4484.3,1.15996009]